[Event "Asian Zonal-ch 3.5 Women 2019"]
[Site "Zi Bo"]
[Date "2019.09.08"]
[Round "6.4"]
[White "Huang, Qian"]
[Black "Bai, Xue"]
[Result "1-0"]
[ECO "A14"]
[WhiteElo "2429"]
[BlackElo "2093"]
[Annotator "ChessBase"]
[PlyCount "103"]
[EventDate "2019.09.05"]
[EventType "swiss"]
[EventCountry "CHN"]
[SourceTitle "playchess.com"]
[Source "ChessBase"]
[SourceQuality "1"]
[TimeControl "5400+30"]

1. c4 {[%emt 0:00:00]} e6 {[%emt 0:00:00]} 2. g3 {[%emt 0:00:00]} Nf6 {[%emt 0:00:00]} 3. Bg2 {[%emt 0:00:00]} d5 {[%emt 0:00:00]} 4. Nf3 {[%emt 0:00:06]} Be7 {[%emt 0:00:01]} 5. O-O {[%emt 0:00:12]} O-O {[%emt 0:00:07]} 6. b3 {[%emt 0:00:09]} d4 {[%emt 0:00:32]} 7. e3 {[%emt 0:00:37]} c5 {[%emt 0:00:07]} 8. exd4 {[%emt 0:00:04]} cxd4 {[%emt 0:00:07]} 9. d3 {[%emt 0:00:01]} Nc6 {[%emt 0:00:15]} 10. Re1 {[%emt 0:00:05]} Bb4 {[%emt 0:02:09]} 11. Re2 {[%emt 0:06:19]} Bd6 {[%emt 0:04:33]} 12. Ba3 {[%emt 0:02:41]} Qe7 {[%emt 0:03:03]} 13. Bb2 {[%emt 0:08:37]} Bc5 {[%emt 0:01:09]} 14. Nbd2 {[%emt 0:08:06]} a5 {[%emt 0:09:30]} 15. Ne5 {[%emt 0:07:56]} Nxe5 {[%emt 0:04:09]} 16. Rxe5 {[%emt 0:00:04]} Qc7 {[%emt 0:01:12]} 17. f4 {[%emt 0:03:52]} Rb8 {[%emt 0:06:54]} 18. Nf3 {[%emt 0:22:00]} Rd8 {[%emt 0:01:53]} 19. h3 {[%emt 0:04:17]} b6 {[%emt 0:01:34]} 20. a3 {[%emt 0:01:04]} Bb7 {[%emt 0:00:33]} 21. Kh2 {[%emt 0:00:08]} Nd7 {[%emt 0:02:43]} 22. Re2 {[%emt 0:01:12]} Bxf3 {[%emt 0:03:32]} 23. Bxf3 {[%emt 0:00:06]} Qd6 {[%emt 0:01:18]} 24. Bg2 {[%emt 0:05:12]} b5 {[%emt 0:05:21]} 25. Bc1 {[%emt 0:00:42]} Qa6 {[%emt 0:05:00]} 26. Rc2 {[%emt 0:02:23]} Rdc8 {[%emt 0:05:39]} 27. Bd2 {[%emt 0:00:44]} bxc4 {[%emt 0:01:31]} 28. Rxc4 {[%emt 0:00:03]} Nb6 {[%emt 0:00:39]} 29. Rcc1 {[%emt 0:00:04]} Bf8 {[%emt 0:08:33]} 30. Be1 {[%emt 0:03:05]} h6 {[%emt 0:07:01]} 31. b4 {[%emt 0:02:05]} Rxc1 {[%emt 0:03:13]} 32. Rxc1 {[%emt 0:00:02]} axb4 {[%emt 0:00:06]} 33. axb4 {[%emt 0:00:03]} Nd5 {[%emt 0:00:30]} 34. Bxd5 {[%emt 0:03:15]} exd5 {[%emt 0:00:06]} 35. Ra1 {[%emt 0:00:59]} Qe6 {[%emt 0:01:34]} 36. Rb1 {[%emt 0:00:35]} Qa6 {[%emt 0:03:29]} 37. Qc2 {[%emt 0:04:34]} Rc8 {[%emt 0:04:51]} 38. Qe2 {[%emt 0:00:10]} Qa4 {[%emt 0:00:51]} 39. Rb2 Rc1 40. Kg2 Qa3 41. Bf2 Qc3 42. b5 Ra1 43. Rc2 Qb4 {[%emt 0:02:20]} 44. Rb2 {[%emt 0:03:34]} Qc3 {[%emt 0:10:21]} 45. Qc2 {[%emt 0:09:31]} Rc1 46. Qb3 {[%emt 0:07:23]} Ba3 {[%emt 0:02:23]} 47. Rb1 {[%emt 0:00:30]} Rc2 {[%emt 0:00:30]} 48. b6 {[%emt 0:05:31]} Qd2 {[%emt 0:03:38]} 49. Rf1 {[%emt 0:00:20]} Bf8 {[%emt 0:00:19]} 50. b7 {[%emt 0:00:00]} Rb2 {[%emt 0:00:21]} 51. b8=Q {[%emt 0:00:00]} Rxb3 {[%emt 0:00:06]} 52. Qxb3 {[%emt 0:00:21]} 1-0

[Event "Asian Zonal-ch 3.5 Women 2019"]
[Site "Zi Bo"]
[Date "2019.09.08"]
[Round "6.5"]
[White "Song, Yuxin"]
[Black "Ren, Xiaoyi"]
[Result "0-1"]
[ECO "D78"]
[WhiteElo "2305"]
[BlackElo "2231"]
[Annotator "NA"]
[PlyCount "130"]
[EventDate "2019.09.05"]
[EventType "swiss"]
[EventCountry "CHN"]
[SourceTitle "playchess.com"]
[Source "ChessBase"]
[SourceQuality "1"]
[TimeControl "5400+30"]

1. Nf3 {[%emt 0:00:00]} d5 {[%emt 0:00:00]} 2. g3 {[%emt 0:00:00]} Nf6 {[%emt 0:00:06]} 3. Bg2 {[%emt 0:00:00]} g6 {[%emt 0:00:05]} 4. d4 {[%emt 0:00:00]} Bg7 {[%emt 0:00:04]} 5. O-O {[%emt 0:00:07]} O-O {[%emt 0:00:13]} 6. c4 {[%emt 0:00:06]} c6 {[%emt 0:00:04]} 7. Qb3 {[%emt 0:00:06]} a5 {[%emt 0:03:33]} 8. Nc3 {[%emt 0:05:18]} a4 {[%emt 0:05:09]} 9. Qd1 {[%emt 0:13:06]} dxc4 {[%emt 0:01:47]} 10. Nxa4 {[%emt 0:05:18]} Bf5 {[%emt 0:00:34]} 11. Ne5 {[%emt 0:04:24]} Ng4 {[%emt 0:07:25]} 12. Nf3 {[%emt 0:04:55]} Nf6 {[%emt 0:02:09]} 13. h3 {[%emt 0:12:02]} Qa5 {[%emt 0:02:00]} 14. Nc3 {[%emt 0:04:18]} Ne4 {[%emt 0:01:41]} 15. Bd2 {[%emt 0:06:02]} Qb6 {[%emt 0:05:00]} 16. Bc1 {[%emt 0:09:17]} Rd8 {[%emt 0:06:03]} 17. g4 {[%emt 0:00:50]} Nxc3 {[%emt 0:00:28]} 18. bxc3 {[%emt 0:00:02]} Be4 {[%emt 0:00:07]} 19. Nd2 {[%emt 0:03:17]} Bxg2 {[%emt 0:00:16]} 20. Kxg2 {[%emt 0:00:01]} Qa5 {[%emt 0:00:06]} 21. Qc2 {[%emt 0:00:46]} b5 {[%emt 0:00:17]} 22. Bb2 {[%emt 0:04:19]} Nd7 {[%emt 0:00:29]} 23. Ne4 {[%emt 0:01:36]} Qc7 {[%emt 0:00:57]} 24. a4 {[%emt 0:03:15]} e5 {[%emt 0:03:04]} 25. e3 {[%emt 0:03:12]} Nb6 {[%emt 0:05:26]} 26. axb5 {[%emt 0:02:51]} cxb5 {[%emt 0:00:14]} 27. Ba3 {[%emt 0:00:16]} exd4 {[%emt 0:03:08]} 28. cxd4 {[%emt 0:00:48]} Qc6 {[%emt 0:00:16]} 29. Kg1 {[%emt 0:00:41]} Re8 {[%emt 0:02:08]} 30. Ng3 {[%emt 0:02:11]} Qf3 {[%emt 0:02:38]} 31. Qe2 {[%emt 0:03:47]} Qc6 {[%emt 0:01:29]} 32. Qc2 {[%emt 0:00:56]} Qf3 {[%emt 0:05:10]} 33. Qe2 {[%emt 0:00:02]} Qxe2 {[%emt 0:00:05]} 34. Nxe2 {[%emt 0:00:01]} Nd5 {[%emt 0:00:06]} 35. Bc5 {[%emt 0:00:32]} Bf8 {[%emt 0:00:57]} 36. Rxa8 {[%emt 0:01:59]} Rxa8 {[%emt 0:00:07]} 37. Bxf8 {[%emt 0:00:01]} Kxf8 {[%emt 0:00:10]} 38. Rb1 {[%emt 0:00:05]} Rb8 {[%emt 0:03:20]} 39. e4 {[%emt 0:00:36]} Nc7 {[%emt 0:04:15]} 40. Kg2 {[%emt 0:03:05]} b4 {[%emt 0:00:11]} 41. d5 {[%emt 0:04:24]} Na6 {[%emt 0:01:28]} 42. Kf3 {[%emt 0:00:29]} c3 {[%emt 0:00:05]} 43. Ke3 {[%emt 0:01:18]} c2 {[%emt 0:00:39]} 44. Rb2 {[%emt 0:00:29]} b3 {[%emt 0:00:34]} 45. Nc1 {[%emt 0:01:00]} Nc5 {[%emt 0:00:19]} 46. Kd4 {[%emt 0:00:01]} Rc8 {[%emt 0:00:22]} 47. f4 {[%emt 0:00:32]} h5 {[%emt 0:04:06]} 48. g5 {[%emt 0:03:29]} h4 {[%emt 0:00:20]} 49. Ne2 {[%emt 0:02:06]} Na4 {[%emt 0:06:13]} 50. Rxb3 {[%emt 0:00:03]} c1=Q {[%emt 0:00:05]} 51. Nxc1 {[%emt 0:00:01]} Rxc1 {[%emt 0:00:09]} 52. Ke5 {[%emt 0:01:20]} Nc5 {[%emt 0:01:41]} 53. Rb8+ {[%emt 0:00:01]} Kg7 {[%emt 0:00:04]} 54. Re8 {[%emt 0:00:43]} Nd3+ {[%emt 0:00:08]} 55. Kd6 {[%emt 0:00:55]} Nxf4 {[%emt 0:00:31]} 56. Ke7 {[%emt 0:00:23]} Re1 {[%emt 0:01:58]} 57. Kd8 {[%emt 0:00:22]} Nxh3 {[%emt 0:00:14]} 58. d6 {[%emt 0:00:09]} Nxg5 {[%emt 0:01:01]} 59. d7 {[%emt 0:00:13]} Ne6+ {[%emt 0:00:36]} 60. Kc8 {[%emt 0:00:20]} Rc1+ {[%emt 0:00:10]} 61. Kb8 {[%emt 0:00:07]} Rd1 {[%emt 0:00:09]} 62. Kc8 {[%emt 0:00:19]} h3 {[%emt 0:00:04]} 63. d8=Q {[%emt 0:00:10]} Rxd8+ {[%emt 0:00:06]} 64. Rxd8 {[%emt 0:00:05]} Nxd8 {[%emt 0:00:03]} 65. Kxd8 {[%emt 0:00:03]} h2 {[%emt 0:00:09]} 0-1

[Event "Asian Zonal-ch 3.5 Women 2019"]
[Site "Zi Bo"]
[Date "2019.09.08"]
[Round "6.6"]
[White "Hu, Yu A."]
[Black "Li, Xueyi"]
[Result "0-1"]
[ECO "B19"]
[WhiteElo "2105"]
[BlackElo "2323"]
[Annotator "NA"]
[PlyCount "98"]
[EventDate "2019.09.05"]
[EventType "swiss"]
[EventCountry "CHN"]
[SourceTitle "playchess.com"]
[Source "ChessBase"]
[SourceQuality "1"]
[TimeControl "5400+30"]

1. e4 {[%emt 0:00:00]} c6 {[%emt 0:00:00]} 2. d4 {[%emt 0:00:09]} d5 {[%emt 0:00:00]} 3. Nd2 {[%emt 0:00:26]} dxe4 {[%emt 0:00:25]} 4. Nxe4 {[%emt 0:00:27]} Bf5 {[%emt 0:00:13]} 5. Ng3 {[%emt 0:00:18]} Bg6 {[%emt 0:00:04]} 6. h4 {[%emt 0:00:11]} h6 {[%emt 0:00:04]} 7. Nf3 {[%emt 0:00:10]} e6 {[%emt 0:00:13]} 8. Ne5 {[%emt 0:03:03]} Bh7 {[%emt 0:00:11]} 9. Qh5 {[%emt 0:09:36]} Qc7 {[%emt 0:00:13]} 10. Bc4 {[%emt 0:03:10]} Nf6 {[%emt 0:01:55]} 11. Qe2 {[%emt 0:00:27]} Bd6 {[%emt 0:04:53]} 12. Bf4 {[%emt 0:10:08]} Qe7 {[%emt 0:23:33]} 13. O-O-O {[%emt 0:21:47]} Nbd7 {[%emt 0:01:55]} 14. Kb1 {[%emt 0:06:11]} Nb6 {[%emt 0:09:24]} 15. Bd3 {[%emt 0:00:11]} Nfd5 {[%emt 0:04:56]} 16. Bd2 {[%emt 0:02:23]} Bxd3 {[%emt 0:05:04]} 17. Qxd3 {[%emt 0:00:14]} Nf6 {[%emt 0:08:22]} 18. Rhe1 {[%emt 0:02:33]} O-O-O {[%emt 0:00:51]} 19. Qb3 {[%emt 0:06:34]} Bxe5 {[%emt 0:07:58]} 20. dxe5 {[%emt 0:00:07]} Ng4 {[%emt 0:00:15]} 21. Qf3 {[%emt 0:10:44]} h5 {[%emt 0:02:19]} 22. Bg5 {[%emt 0:08:27]} Rxd1+ {[%emt 0:07:37]} 23. Rxd1 {[%emt 0:00:06]} Qc7 {[%emt 0:12:12]} 24. Nxh5 {[%emt 0:00:27]} Nxe5 {[%emt 0:02:05]} 25. Qe2 {[%emt 0:05:58]} Nd5 {[%emt 0:03:03]} 26. Nxg7 {[%emt 0:05:16]} Nd7 {[%emt 0:00:48]} 27. c4 {[%emt 0:02:05]} N5b6 {[%emt 0:01:01]} 28. h5 {[%emt 0:00:59]} Qh2 {[%emt 0:02:34]} 29. g3 {[%emt 0:00:28]} Qh3 {[%emt 0:01:22]} 30. Qe4 {[%emt 0:01:22]} Rxh5 {[%emt 0:00:34]} 31. Nxh5 {[%emt 0:00:05]} Qxh5 {[%emt 0:00:04]} 32. Qd3 {[%emt 0:01:26]} Qxg5 {[%emt 0:00:07]} 33. Ka1 {[%emt 0:00:28]} Qc5 {[%emt 0:00:18]} 34. Qf3 {[%emt 0:00:26]} f5 {[%emt 0:01:00]} 35. b3 {[%emt 0:00:32]} Qe5+ {[%emt 0:00:25]} 36. Kb1 {[%emt 0:00:04]} Nc5 {[%emt 0:00:21]} 37. Qh5 {[%emt 0:00:16]} Nbd7 {[%emt 0:00:34]} 38. b4 {[%emt 0:01:05]} Qe4+ {[%emt 0:00:08]} 39. Kb2 {[%emt 0:00:35]} Nd3+ {[%emt 0:00:46]} 40. Kc3 {[%emt 0:00:04]} N3e5 {[%emt 0:00:16]} 41. Qe8+ {[%emt 0:00:04]} Kc7 {[%emt 0:00:13]} 42. Qxe6 {[%emt 0:00:05]} Qf3+ {[%emt 0:00:13]} 43. Kc2 {[%emt 0:00:02]} Qxf2+ {[%emt 0:00:58]} 44. Rd2 {[%emt 0:00:03]} Qxg3 {[%emt 0:00:45]} 45. Qd6+ {[%emt 0:00:24]} Kc8 {[%emt 0:00:17]} 46. Qd4 {[%emt 0:01:27]} Qa3 {[%emt 0:00:19]} 47. Kd1 {[%emt 0:01:34]} Qa4+ {[%emt 0:00:42]} 48. Kc1 {[%emt 0:00:37]} Qxb4 {[%emt 0:00:13]} 49. Qxa7 {[%emt 0:00:06]} Nxc4 {[%emt 0:00:42]} 0-1

[Event "Asian Zonal-ch 3.5 Women 2019"]
[Site "Zi Bo"]
[Date "2019.09.08"]
[Round "6.7"]
[White "Gu, Tianlu"]
[Black "Yuan, Ye"]
[Result "1-0"]
[ECO "B40"]
[WhiteElo "2239"]
[BlackElo "2092"]
[Annotator "NA"]
[PlyCount "47"]
[EventDate "2019.09.05"]
[EventType "swiss"]
[EventCountry "CHN"]
[SourceTitle "playchess.com"]
[Source "ChessBase"]
[SourceQuality "1"]
[TimeControl "5400+30"]

1. e4 {[%emt 0:00:00]} c5 {[%emt 0:00:00]} 2. Nf3 {[%emt 0:00:00]} e6 {[%emt 0:00:07]} 3. Nc3 {[%emt 0:00:02]} a6 {[%emt 0:00:12]} 4. g3 {[%emt 0:00:20]} Nc6 {[%emt 0:04:26]} 5. Bg2 {[%emt 0:00:12]} Nf6 {[%emt 0:05:57]} 6. O-O {[%emt 0:00:14]} d5 {[%emt 0:00:52]} 7. exd5 {[%emt 0:00:58]} Nxd5 {[%emt 0:01:02]} 8. Nxd5 {[%emt 0:04:21]} Qxd5 {[%emt 0:02:33]} 9. Re1 {[%emt 0:03:52]} Qd7 {[%emt 0:04:11]} 10. d3 {[%emt 0:02:05]} Be7 {[%emt 0:01:02]} 11. a4 {[%emt 0:00:45]} O-O {[%emt 0:04:56]} 12. Nd2 {[%emt 0:00:57]} Na5 {[%emt 0:07:07]} 13. Ne4 {[%emt 0:03:07]} Ra7 {[%emt 0:06:39]} 14. Be3 {[%emt 0:02:12]} b6 {[%emt 0:01:51]} 15. b4 {[%emt 0:02:33]} Nb7 {[%emt 0:01:29]} 16. a5 {[%emt 0:11:05]} Qc7 {[%emt 0:01:47]} 17. d4 {[%emt 0:10:50]} bxa5 {[%emt 0:11:22]} 18. bxc5 {[%emt 0:02:34]} Bd7 {[%emt 0:02:07]} 19. c4 {[%emt 0:04:59]} Raa8 {[%emt 0:04:17]} 20. Rb1 {[%emt 0:04:16]} Kh8 {[%emt 0:03:55]} 21. d5 {[%emt 0:05:03]} exd5 {[%emt 0:02:08]} 22. cxd5 {[%emt 0:00:05]} Nxc5 {[%emt 0:01:11]} 23. d6 {[%emt 0:02:24]} Bxd6 {[%emt 0:00:03]} 24. Qxd6 {[%emt 0:00:07]} 1-0

[Event "Asian Zonal-ch 3.5 Women 2019"]
[Site "Zi Bo"]
[Date "2019.09.08"]
[Round "6.8"]
[White "Zhang, Lanlin"]
[Black "Zhang, Xiao"]
[Result "1-0"]
[ECO "B15"]
[WhiteElo "2203"]
[BlackElo "2073"]
[Annotator "NA"]
[PlyCount "93"]
[EventDate "2019.09.05"]
[EventType "swiss"]
[EventCountry "CHN"]
[SourceTitle "playchess.com"]
[Source "ChessBase"]
[SourceQuality "1"]
[TimeControl "5400+30"]

1. e4 {[%emt 0:00:00]} c6 {[%emt 0:00:00]} 2. d4 {[%emt 0:09:05]} d5 {[%emt 0:00:00]} 3. Nc3 {[%emt 0:00:19]} g6 {[%emt 0:00:16]} 4. e5 {[%emt 0:01:05]} h5 {[%emt 0:00:23]} 5. f4 {[%emt 0:00:20]} Bg4 {[%emt 0:01:37]} 6. Nf3 {[%emt 0:00:14]} e6 {[%emt 0:01:07]} 7. h3 {[%emt 0:00:24]} Bxf3 {[%emt 0:00:11]} 8. Qxf3 {[%emt 0:00:04]} c5 {[%emt 0:01:45]} 9. Be3 {[%emt 0:05:12]} Nc6 {[%emt 0:11:28]} 10. dxc5 {[%emt 0:07:19]} Qa5 {[%emt 0:02:57]} 11. O-O-O {[%emt 0:07:12]} O-O-O {[%emt 0:10:18]} 12. Qf2 {[%emt 0:04:25]} Nh6 {[%emt 0:02:02]} 13. Bb5 {[%emt 0:07:04]} Nf5 {[%emt 0:01:49]} 14. Bxc6 {[%emt 0:15:40]} bxc6 {[%emt 0:00:06]} 15. Kb1 {[%emt 0:00:36]} h4 {[%emt 0:09:14]} 16. Ne2 {[%emt 0:03:34]} Nxe3 {[%emt 0:03:48]} 17. Qxe3 {[%emt 0:00:04]} Bxc5 {[%emt 0:00:19]} 18. Qf3 {[%emt 0:00:38]} Qa6 {[%emt 0:03:54]} 19. Rd3 {[%emt 0:00:31]} Rd7 {[%emt 0:06:03]} 20. Rhd1 {[%emt 0:03:02]} Rhd8 {[%emt 0:01:59]} 21. Qg4 {[%emt 0:05:41]} Be7 {[%emt 0:00:39]} 22. Ng1 {[%emt 0:00:51]} Rb7 {[%emt 0:03:42]} 23. Nf3 {[%emt 0:01:32]} Rh8 {[%emt 0:01:26]} 24. Ng5 {[%emt 0:00:19]} Bxg5 {[%emt 0:02:18]} 25. fxg5 {[%emt 0:00:13]} Qb6 {[%emt 0:01:34]} 26. Rb3 {[%emt 0:03:11]} Qc7 {[%emt 0:00:29]} 27. Re3 {[%emt 0:01:02]} Qb6 {[%emt 0:00:33]} 28. Rb3 {[%emt 0:02:06]} Qc7 {[%emt 0:00:09]} 29. Qf4 {[%emt 0:00:07]} Rxb3 {[%emt 0:03:09]} 30. axb3 {[%emt 0:00:54]} Qe7 {[%emt 0:04:09]} 31. c4 {[%emt 0:00:34]} Rh5 {[%emt 0:10:10]} 32. Rf1 {[%emt 0:04:37]} Kd8 {[%emt 0:02:01]} 33. cxd5 {[%emt 0:03:07]} exd5 {[%emt 0:03:18]} 34. e6 {[%emt 0:02:44]} Qxe6 {[%emt 0:02:48]} 35. Qb8+ {[%emt 0:00:08]} Ke7 {[%emt 0:03:59]} 36. Qb4+ {[%emt 0:00:04]} Kd7 {[%emt 0:03:42]} 37. Re1 {[%emt 0:00:04]} Qf5+ {[%emt 0:03:48]} 38. Ka2 {[%emt 0:00:05]} Qxg5 {[%emt 0:00:13]} 39. Qb7+ {[%emt 0:01:04]} Kd6 {[%emt 0:00:38]} 40. Qxf7 {[%emt 0:00:15]} Kc5 {[%emt 0:01:23]} 41. Qxa7+ {[%emt 0:00:28]} Kd6 {[%emt 0:00:29]} 42. Qf7 {[%emt 0:01:35]} Kc5 {[%emt 0:00:14]} 43. Qf8+ {[%emt 0:00:09]} Kb6 {[%emt 0:00:46]} 44. Qb4+ {[%emt 0:00:20]} Ka6 {[%emt 0:00:28]} 45. Re7 {[%emt 0:00:38]} d4 {[%emt 0:00:30]} 46. Qb7+ {[%emt 0:00:13]} Ka5 {[%emt 0:00:02]} 47. b4+ {[%emt 0:00:05]} 1-0

[Event "Asian Zonal-ch 3.5 Women 2019"]
[Site "Zi Bo"]
[Date "2019.09.08"]
[Round "6.9"]
[White "Zhou, Zirun"]
[Black "Zhao, Shengxin"]
[Result "1/2-1/2"]
[ECO "D14"]
[WhiteElo "2155"]
[BlackElo "2162"]
[Annotator "NA"]
[PlyCount "60"]
[EventDate "2019.09.05"]
[EventType "swiss"]
[EventCountry "CHN"]
[SourceTitle "playchess.com"]
[Source "ChessBase"]
[SourceQuality "1"]
[TimeControl "5400+30"]

1. d4 {[%emt 0:00:00]} d5 {[%emt 0:00:00]} 2. c4 {[%emt 0:00:00]} c6 {[%emt 0:00:00]} 3. cxd5 {[%emt 0:00:00]} cxd5 {[%emt 0:00:00]} 4. Nf3 {[%emt 0:00:01]} Nf6 {[%emt 0:00:06]} 5. Bf4 {[%emt 0:00:10]} Bf5 {[%emt 0:00:25]} 6. e3 {[%emt 0:00:05]} Nc6 {[%emt 0:00:09]} 7. Nc3 {[%emt 0:00:16]} e6 {[%emt 0:00:06]} 8. Bd3 {[%emt 0:00:11]} Bxd3 {[%emt 0:00:08]} 9. Qxd3 {[%emt 0:00:20]} Bd6 {[%emt 0:05:09]} 10. Bxd6 {[%emt 0:02:24]} Qxd6 {[%emt 0:00:47]} 11. O-O {[%emt 0:00:15]} O-O {[%emt 0:00:07]} 12. Ne2 {[%emt 0:03:42]} Ne7 {[%emt 0:00:42]} 13. Rfc1 {[%emt 0:00:11]} Rfc8 {[%emt 0:01:43]} 14. Rxc8+ {[%emt 0:01:17]} Rxc8 {[%emt 0:01:05]} 15. Rc1 {[%emt 0:00:26]} Rxc1+ {[%emt 0:00:34]} 16. Nxc1 {[%emt 0:00:13]} Qc6 {[%emt 0:00:05]} 17. Ne2 {[%emt 0:00:22]} Kf8 {[%emt 0:00:19]} 18. Ne5 {[%emt 0:02:05]} Qc7 {[%emt 0:00:20]} 19. Qc3 {[%emt 0:00:14]} Qxc3 {[%emt 0:01:13]} 20. Nxc3 {[%emt 0:00:11]} Nc6 {[%emt 0:00:31]} 21. Nxc6 {[%emt 0:01:20]} bxc6 {[%emt 0:00:43]} 22. Kf1 {[%emt 0:00:45]} Ke7 {[%emt 0:00:28]} 23. Na4 {[%emt 0:00:10]} Kd6 {[%emt 0:01:13]} 24. Ke2 {[%emt 0:01:21]} Nd7 {[%emt 0:00:14]} 25. b4 {[%emt 0:00:11]} e5 {[%emt 0:00:31]} 26. f3 {[%emt 0:00:39]} f6 {[%emt 0:00:43]} 27. Kd3 {[%emt 0:00:11]} Kc7 {[%emt 0:00:09]} 28. Nc5 {[%emt 0:00:35]} Nxc5+ {[%emt 0:00:39]} 29. bxc5 {[%emt 0:00:08]} Kb7 {[%emt 0:01:33]} 30. Kc3 {[%emt 0:00:09]} Kc7 {[%emt 0:00:21]} 1/2-1/2

[Event "Asian Zonal-ch 3.5 Women 2019"]
[Site "Zi Bo"]
[Date "2019.09.08"]
[Round "6.10"]
[White "Zhang, Yuxuan"]
[Black "Xue, Yue"]
[Result "1-0"]
[ECO "B55"]
[WhiteElo "1979"]
[BlackElo "1678"]
[Annotator "NA"]
[PlyCount "76"]
[EventDate "2019.09.05"]
[EventType "swiss"]
[EventCountry "CHN"]
[SourceTitle "playchess.com"]
[Source "ChessBase"]
[SourceQuality "1"]
[TimeControl "5400+30"]

1. e4 {[%emt 0:00:00]} c5 {[%emt 0:00:37]} 2. Nf3 {[%emt 0:00:00]} d6 {[%emt 0:00:06]} 3. d4 {[%emt 0:00:00]} cxd4 {[%emt 0:00:11]} 4. Nxd4 {[%emt 0:00:00]} Nf6 {[%emt 0:00:07]} 5. f3 {[%emt 0:00:00]} g6 {[%emt 0:02:44]} 6. c4 {[%emt 0:00:23]} Bg7 {[%emt 0:00:53]} 7. Nc3 {[%emt 0:00:21]} Nc6 {[%emt 0:00:26]} 8. Nc2 {[%emt 0:00:36]} O-O {[%emt 0:02:14]} 9. Be3 {[%emt 0:00:38]} Be6 {[%emt 0:02:58]} 10. Qd2 {[%emt 0:01:16]} Rc8 {[%emt 0:04:19]} 11. Rc1 {[%emt 0:02:17]} Qa5 {[%emt 0:10:42]} 12. Be2 {[%emt 0:02:42]} Rfd8 {[%emt 0:05:36]} 13. O-O {[%emt 0:00:25]} a6 {[%emt 0:05:34]} 14. Rfd1 {[%emt 0:01:58]} Ne5 {[%emt 0:04:20]} 15. b4 {[%emt 0:01:53]} Qc7 {[%emt 0:00:57]} 16. Na3 {[%emt 0:00:06]} b6 {[%emt 0:10:55]} 17. Na4 {[%emt 0:05:16]} Rb8 {[%emt 0:01:13]} 18. Bf1 {[%emt 0:04:26]} Bd7 {[%emt 0:05:30]} 19. Nc3 {[%emt 0:00:46]} Qb7 {[%emt 0:03:46]} 20. Qf2 {[%emt 0:03:15]} Be8 {[%emt 0:05:17]} 21. h3 {[%emt 0:03:11]} Rdc8 {[%emt 0:06:31]} 22. Nd5 {[%emt 0:05:04]} Nxd5 {[%emt 0:03:19]} 23. exd5 {[%emt 0:00:10]} Ba4 {[%emt 0:03:10]} 24. Rd2 {[%emt 0:02:16]} b5 {[%emt 0:06:16]} 25. c5 {[%emt 0:00:26]} dxc5 {[%emt 0:00:15]} 26. bxc5 {[%emt 0:00:10]} b4 {[%emt 0:00:12]} 27. c6 {[%emt 0:03:04]} Qc7 {[%emt 0:03:06]} 28. Nc2 {[%emt 0:04:15]} Bb5 {[%emt 0:01:27]} 29. Ba7 {[%emt 0:00:46]} Ra8 {[%emt 0:05:05]} 30. Bb6 {[%emt 0:00:09]} Qb8 {[%emt 0:01:11]} 31. Nxb4 {[%emt 0:03:21]} Bxf1 {[%emt 0:01:16]} 32. Kxf1 {[%emt 0:00:29]} Bh6 {[%emt 0:02:21]} 33. Bc5 {[%emt 0:07:05]} Qb5+ {[%emt 0:01:15]} 34. Kg1 {[%emt 0:01:00]} Bxd2 {[%emt 0:01:16]} 35. Qxd2 {[%emt 0:00:16]} a5 {[%emt 0:00:10]} 36. Bxe7 {[%emt 0:03:30]} axb4 {[%emt 0:00:42]} 37. Bf6 {[%emt 0:00:06]} Nxc6 {[%emt 0:01:33]} 38. Qh6 {[%emt 0:00:22]} Ne5 {[%emt 0:00:33]} 1-0